bitfinex-derivatives/quotes_BTCF0:USTF0_20240913
["timestamp","ask_amount","ask_price","bid_price","bid_amount"]
[1726228511329,0.48023829,58030.0,58029.0,0.153258]
[1726228511512,0.59932579,58030.0,58029.0,0.153258]
[1726228512127,0.48023829,58030.0,58029.0,0.153258]
[1726228512526,0.52243388,58030.0,58029.0,0.091158]
[1726228512725,0.599311,58030.0,58029.0,0.01]
[1726228512921,0.57532722,58030.0,58029.0,0.01]
[1726228513121,0.72841437,58030.0,58029.0,0.01]
[1726228513518,0.57532722,58030.0,58029.0,0.01]
[1726228514125,0.72843843,58030.0,58029.0,0.01]
[1726228514526,0.52243409,58030.0,58029.0,0.01]
[1726228515331,0.52243409,58030.0,58029.0,0.096159]
[1726228516321,0.57532426,58030.0,58029.0,0.096159]
[1726228516536,0.57532406,58030.0,58029.0,0.096159]
[1726228516836,0.52243409,58030.0,58029.0,0.096159]
[1726228517034,0.446958,58030.0,58029.0,0.16489967]
[1726228518131,0.446958,58030.0,58029.0,0.096159]
[1726228519620,0.446958,58030.0,58029.0,0.01]
[1726228521138,0.446958,58030.0,58029.0,0.096159]
[1726228525444,0.01883107,58033.0,58029.0,0.01]
[1726228525738,0.3648,58037.0,58029.0,0.01]
[1726228525739,0.086153,58034.0,58033.0,0.086151]
[1726228525951,0.086153,58034.0,58033.0,0.15496017]
[1726228526243,0.2,58036.0,58032.0,0.15496217]
[1726228526244,0.086153,58033.0,58032.0,0.15496217]
[1726228526437,0.286153,58033.0,58032.0,0.06880917]
[1726228527531,0.286153,58033.0,58032.0,0.07080917]
[1726228528140,0.286153,58033.0,58032.0,0.15696417]
[1726228528945,0.286153,58033.0,58032.0,0.15796417]
[1726228529140,0.286153,58033.0,58032.0,0.089155]
[1726228532231,0.31943664,58033.0,58032.0,0.089155]
[1726228532937,0.23328364,58033.0,58032.0,0.089155]
[1726228533140,0.03328364,58033.0,58032.0,0.089155]
[1726228534137,0.06656539,58033.0,58032.0,0.089155]
[1726228534343,0.03328175,58033.0,58032.0,0.089155]
[1726228535143,0.03328175,58033.0,58032.0,0.17531]
[1726228535334,0.03328164,58033.0,58032.0,0.089155]
[1726228535639,0.03628164,58033.0,58032.0,0.088155]
[1726228535943,0.12443464,58033.0,58032.0,0.086155]
[1726228537042,0.03828164,58033.0,58032.0,0.086155]
[1726228537236,0.04100164,58033.0,58032.0,0.086155]
[1726228539044,0.04100144,58033.0,58032.0,0.086155]
[1726228539344,0.00772,58033.0,58032.0,0.086155]
[1726228541141,0.00772,58033.0,58032.0,0.17231]
[1726228541533,0.00772,58033.0,58032.0,0.68927]
[1726228541936,0.00772,58033.0,58032.0,0.86140119]
[1726228542136,0.00772,58033.0,58032.0,0.775425]
[1726228542836,0.00772,58033.0,58032.0,0.258465]
[1726228543041,0.00572,58033.0,58032.0,0.259465]
[1726228543343,0.00272,58033.0,58032.0,0.259465]
[1726228543740,0.00272,58033.0,58032.0,0.17331]
[1726228543944,0.00272,58033.0,58032.0,0.259465]
[1726228544140,0.00272,58033.0,58032.0,0.17331]
[1726228544748,0.00272,58033.0,58032.0,0.087155]
[1726228545349,0.00272,58033.0,58032.0,0.15598248]
[1726228545646,0.088873,58033.0,58032.0,0.15598248]
[1726228546058,0.00272,58033.0,58032.0,0.15598248]
[1726228546247,0.00272,58033.0,58032.0,0.087155]
[1726228546546,0.00272,58033.0,58032.0,0.17331]
[1726228547147,0.03599888,58033.0,58032.0,0.17331]
[1726228547344,0.00272,58033.0,58032.0,0.17331]
[1726228547652,0.07818777,58033.0,58032.0,0.53411]
[1726228548350,0.07818777,58033.0,58032.0,0.447955]
[1726228548548,0.07818762,58033.0,58032.0,0.73411]
[1726228549749,0.16434062,58033.0,58032.0,0.447955]
[1726228549948,0.12215181,58033.0,58032.0,0.087155]
[1726228552338,0.11943181,58033.0,58032.0,0.087155]
[1726228552541,0.11943181,58033.0,58032.0,0.086155]
[1726228552842,0.20538011,58033.0,58032.0,0.087155]
[1726228553037,0.086153,58033.0,58032.0,0.087155]
[1726228553245,0.13903765,58033.0,58032.0,0.087155]
[1726228553449,0.14003765,58033.0,58032.0,0.086155]
[1726228553652,0.21750834,58033.0,58032.0,0.086155]
[1726228554252,0.089153,58033.0,58032.0,0.086155]
[1726228554844,0.089153,58033.0,58031.0,0.08597619]
[1726228554845,0.086155,58032.0,58031.0,0.08597619]
[1726228555059,0.793714,58032.0,58031.0,0.086156]
[1726228555356,0.086156,58031.0,58030.0,0.086157]
[1726228556759,0.292313,58031.0,58030.0,0.086157]
[1726228556942,0.292313,58031.0,58030.0,0.087157]
[1726228557548,0.292313,58031.0,58030.0,0.001]
[1726228557752,0.292313,58031.0,58030.0,0.087158]
[1726228558658,0.206156,58031.0,58030.0,0.087158]
[1726228560545,0.206156,58031.0,58030.0,0.001]
[1726228560742,0.292312,58031.0,58030.0,0.001]
[1726228560945,0.323956,58031.0,58030.0,0.0698493]
[1726228561352,0.410112,58031.0,58030.0,0.001]
[1726228561858,0.323956,58031.0,58030.0,0.001]
[1726228562061,0.410112,58031.0,58030.0,0.001]
[1726228565655,0.496268,58031.0,58030.0,0.001]
[1726228566658,0.498988,58031.0,58030.0,0.001]
[1726228567556,1.185144,58031.0,58030.0,0.001]
[1726228567756,0.258498,58024.0,58023.0,0.004]
[1726228567958,0.258498,58024.0,58017.0,0.00119072]
[1726228567959,0.086175,58018.0,58017.0,0.00119072]
[1726228568153,0.206175,58018.0,58017.0,0.00119072]
[1726228568854,0.206175,58018.0,58010.0,0.08597619]
[1726228568855,0.086181,58014.0,58010.0,0.08597619]
[1726228569052,0.4808,58011.0,58004.0,0.004]
[1726228569260,0.172378,58009.0,58001.0,0.004]
[1726228569460,0.24789139,58009.0,58001.0,0.004]
[1726228569657,0.35719411,58009.0,58001.0,0.004]
[1726228569861,0.35679059,58009.0,58001.0,0.004]
[1726228570056,0.22090239,58009.0,58001.0,0.004]
[1726228570663,0.22090239,58009.0,58008.0,0.00329168]
[1726228570862,0.22090265,58009.0,58001.0,0.004]
[1726228571162,0.086202,58000.0,57995.0,0.3648]
[1726228571365,0.206202,58000.0,57995.0,0.447008]
[1726228571564,0.206202,58000.0,57995.0,0.449128]
[1726228571761,0.206202,58000.0,57996.0,0.086207]
[1726228571961,0.12,58000.0,57995.0,0.3608]
[1726228572156,0.2,58002.0,57995.0,0.3608]
[1726228572463,0.086202,58000.0,57996.0,0.086208]
[1726228572867,0.2,58002.0,57995.0,0.3608]
[1726228573068,0.2,58002.0,58001.0,0.086201]
[1726228573368,0.201,58002.0,57999.0,0.01174882]
[1726228574069,0.087202,58000.0,57999.0,0.02274882]
[1726228574256,0.087202,58000.0,57999.0,0.01374882]
[1726228574759,0.086202,58000.0,57999.0,0.01174882]
[1726228575367,0.087202,58000.0,57999.0,0.01174882]
[1726228575869,0.086202,58000.0,57999.0,0.00274882]
[1726228576075,0.095202,58000.0,57999.0,0.08995282]
[1726228576266,0.05207195,58000.0,57999.0,0.08995282]
[1726228576771,0.009,58000.0,57999.0,0.09895282]
[1726228577570,0.009,58000.0,57999.0,0.08995282]
[1726228577771,0.009,58000.0,57999.0,0.09095282]
[1726228577772,0.017,58000.0,57999.0,0.09095282]
[1726228578276,0.3608,58003.0,58002.0,0.086199]
[1726228579970,0.3698,58003.0,58002.0,0.087199]
[1726228580668,0.5698,58003.0,58002.0,0.087199]
[1726228580863,0.661998,58003.0,58002.0,0.088199]
[1726228583965,0.748196,58003.0,58002.0,0.002]
[1726228585263,0.748196,58003.0,57999.0,0.00274882]
[1726228585264,0.172404,58000.0,57999.0,0.00274882]
[1726228585466,0.086202,58000.0,57999.0,0.00274882]
[1726228585667,1.203442,58000.0,57999.0,0.00274882]
[1726228585975,0.08621,57995.0,57991.0,0.086215]
[1726228586276,0.5608,57992.0,57991.0,0.086215]
[1726228587876,0.5608,57992.0,57991.0,0.089215]
[1726228588375,0.5608,57992.0,57982.0,0.1184]
[1726228588376,0.086217,57990.0,57964.0,0.0514125]
[1726228588562,0.086217,57990.0,57952.0,0.086273]
[1726228588563,0.086271,57954.0,57952.0,6.6e-07]
[1726228588763,0.258747,57970.0,57938.0,0.05544233]
[1726228588764,0.9216,57953.0,57938.0,0.05144233]
[1726228588964,0.3608,57953.0,57944.0,0.36386196]
[1726228589168,0.3608,57953.0,57952.0,0.2]
[1726228589365,0.3608,57959.0,57954.0,0.08627]
[1726228589568,0.3608,57959.0,57955.0,0.0599]
[1726228589774,0.85,57964.0,57955.0,0.0599]
[1726228590074,0.3608,57966.0,57955.0,0.0599]
[1726228590374,0.004,57971.0,57944.0,0.00306196]
[1726228590375,0.7216,57957.0,57949.0,0.086277]
[1726228590573,0.3608,57950.0,57944.0,0.00306196]
[1726228590773,0.3608,57945.0,57944.0,0.00306196]
[1726228591270,0.3608,57950.0,57945.0,0.086284]
[1726228591473,0.3608,57949.0,57944.0,0.00306196]
[1726228591772,0.3608,57949.0,57945.0,0.086283]
[1726228591976,0.3608,57949.0,57946.0,0.086281]
[1726228592172,0.3608,57949.0,57944.0,0.01106196]
[1726228592474,0.5608,57949.0,57944.0,0.09734696]
[1726228592680,0.5608,57949.0,57944.0,0.01106196]
[1726228592878,0.5608,57949.0,57944.0,0.008]
[1726228593274,0.001,57945.0,57944.0,0.016]
[1726228593877,0.5618,57945.0,57944.0,0.008]
[1726228594175,0.647085,57945.0,57936.0,0.058]
[1726228594479,0.3608,57937.0,57936.0,0.058]
[1726228594779,0.36468,57945.0,57936.0,0.058]
[1726228594974,0.3698,57945.0,57944.0,0.001]
[1726228595171,0.5668,57945.0,57944.0,0.001]
[1726228595487,0.5738,57945.0,57944.0,0.002]
[1726228596085,0.5668,57945.0,57944.0,0.001]
[1726228597171,0.3608,57945.0,57941.0,0.08629]
[1726228597675,0.3678,57945.0,57944.0,0.001]
[1726228597878,0.5678,57945.0,57944.0,0.001]
[1726228598070,0.5738,57945.0,57944.0,0.002]
[1726228598576,0.5668,57945.0,57944.0,0.001]
[1726228598780,0.657084,57945.0,57944.0,0.001]
[1726228599279,1.69152,57945.0,57931.0,0.086305]
[1726228599472,0.5608,57932.0,57927.0,0.0615]
[1726228599874,0.5608,57928.0,57914.0,0.3608]
[1726228600077,0.2,57926.0,57914.0,0.3608]
[1726228600379,0.2,57926.0,57915.0,0.0566]
[1726228600575,1.05,57926.0,57925.0,0.086314]
[1726228600772,0.3608,57928.0,57925.0,0.086314]
[1726228600977,0.3608,57928.0,57927.0,0.086311]
[1726228602285,0.3608,57928.0,57927.0,0.089311]
[1726228602682,0.3608,57928.0,57927.0,0.607191]
[1726228603272,0.2,57934.0,57933.0,0.086302]
[1726228603681,0.2,57934.0,57927.0,0.003]
[1726228603682,0.2863,57934.0,57927.0,0.003]
[1726228603887,0.2,57928.0,57927.0,0.086311]
[1726228604183,0.202,57928.0,57927.0,0.086311]
[1726228604577,0.2,57928.0,57927.0,0.086311]
[1726228605172,0.2,57928.0,57927.0,0.093311]
[1726228607479,0.203,57928.0,57927.0,0.089311]
[1726228607683,0.206,57928.0,57927.0,0.086311]
[1726228608178,0.14754894,57928.0,57927.0,0.086311]
[1726228608389,0.14854894,57928.0,57927.0,0.086311]
[1726228609683,0.095309,57928.0,57927.0,0.086311]
[1726228609976,0.295309,57928.0,57927.0,0.086311]
[1726228610583,0.209,57928.0,57917.0,0.086325]
[1726228610784,0.209,57928.0,57914.0,0.08633]
[1726228610785,0.3608,57925.0,57924.0,0.086315]
[1726228611392,0.27443607,57925.0,57924.0,0.086315]
[1726228611895,0.27543607,57925.0,57924.0,0.086315]
[1726228612289,0.27543607,57925.0,57924.0,0.17263]
[1726228613393,0.001,57952.0,57930.0,0.3608]
[1726228613609,0.0086,57965.0,57948.0,0.7216]
[1726228613894,0.0566,57966.0,57965.0,0.086254]
[1726228614888,0.0566,57966.0,57960.0,0.3608]
[1726228615092,0.0566,57966.0,57965.0,0.001]
[1726228615394,0.0706,57966.0,57965.0,0.001]
[1726228616590,0.014,57966.0,57965.0,0.001]
[1726228617783,0.028,57966.0,57965.0,0.002]
[1726228618280,0.014,57966.0,57965.0,0.006]
[1726228618691,0.3608,57969.0,57965.0,0.01]
[1726228618895,0.2,57975.0,57973.0,0.086241]
[1726228619084,0.2,57979.0,57975.0,0.086239]
[1726228620097,0.2,57979.0,57968.0,0.3608]
[1726228620098,0.2,57983.0,57982.0,0.086228]
[1726228620289,0.3608,57984.0,57974.0,0.3608]
[1726228620591,0.5608,57984.0,57983.0,0.086227]
[1726228620793,0.0571,57986.0,57985.0,0.086224]
[1726228620994,0.2,57988.0,57982.0,0.3608]
[1726228621195,0.2,57988.0,57987.0,0.3608]
[1726228621383,0.2,57991.0,57990.0,0.086217]
[1726228621586,0.07680712,57991.0,57990.0,0.086217]
[1726228621785,0.03458387,57991.0,57990.0,0.086217]
[1726228622089,0.03463992,57991.0,57987.0,0.3608]
[1726228622398,0.03463992,57990.0,57989.0,0.086218]
[1726228622590,0.03421985,57990.0,57989.0,0.086218]
[1726228622893,0.51736,57989.0,57974.0,0.3648]
[1726228623086,0.2,57975.0,57967.0,0.43830578]
[1726228623288,0.2,57970.0,57969.0,0.086248]
[1726228624001,0.2,57974.0,57973.0,0.086242]
[1726228624291,0.23350702,57974.0,57973.0,0.086242]
[1726228625200,0.31974802,57974.0,57973.0,0.092242]
[1726228625393,0.23450702,57974.0,57973.0,0.098242]
[1726228625792,0.23650702,57974.0,57973.0,0.092242]
[1726228625997,0.23651171,57974.0,57973.0,0.092242]
[1726228626196,0.03651171,57974.0,57973.0,0.092242]
[1726228626591,0.003,57974.0,57973.0,0.092242]
[1726228626794,0.089241,57974.0,57973.0,0.006]
[1726228627002,1.567521,57974.0,57967.0,0.4157]
[1726228627206,0.27,57968.0,57967.0,0.501951]
[1726228627498,0.3897539,57968.0,57967.0,0.501951]
[1726228627805,1.35772027,57968.0,57967.0,0.501951]
[1726228628309,1.2397539,57968.0,57967.0,0.501951]
[1726228628611,1.35772027,57968.0,57967.0,0.501951]
[1726228628799,2.48024027,57968.0,57967.0,0.4157]
[1726228628997,2.76531578,57968.0,57967.0,0.0549]
[1726228629205,0.086257,57964.0,57960.0,0.086261]
[1726228629510,2.67606578,57968.0,57960.0,0.086261]
[1726228629511,0.27,57962.0,57960.0,0.086261]
[1726228629892,0.27,57962.0,57947.0,0.3608]
[1726228629893,0.8784,57961.0,57947.0,0.3608]
[1726228630097,0.356272,57953.0,57947.0,0.3608]
[1726228630303,0.086274,57952.0,57950.0,0.086276]
[1726228630505,0.27,57953.0,57947.0,0.3608]
[1726228630703,0.086279,57949.0,57947.0,0.44708]
[1726228630999,0.3608,57956.0,57947.0,0.44708]
[1726228631000,0.356279,57948.0,57947.0,0.3608]
[1726228631590,0.356279,57948.0,57941.0,0.0589]
[1726228631591,0.086287,57944.0,57941.0,0.086289]
[1726228631794,0.086287,57944.0,57937.0,0.0621]
[1726228631795,0.086292,57940.0,57937.0,0.086295]
[1726228632005,0.27,57943.0,57937.0,0.086295]
[1726228632400,0.27,57943.0,57938.0,0.086294]
[1726228632602,0.3608,57941.0,57929.0,0.3608]
[1726228632804,0.3608,57941.0,57932.0,0.086303]
[1726228632805,0.3608,57935.0,57932.0,0.086303]
[1726228633108,0.4471,57935.0,57932.0,0.086303]
[1726228633398,0.936301,57934.0,57932.0,0.086303]
[1726228633599,0.85,57934.0,57929.0,0.3608]
[1726228633801,0.27,57930.0,57929.0,0.3608]
[1726228634495,0.356306,57930.0,57929.0,0.3608]
[1726228634694,0.356306,57930.0,57929.0,0.3678]
[1726228635208,0.357306,57930.0,57929.0,0.3678]
[1726228635511,0.001,57930.0,57929.0,0.454108]
[1726228637302,0.002,57930.0,57929.0,0.461108]
[1726228637705,0.086287,57943.0,57930.0,0.086306]
[1726228637905,0.086289,57942.0,57940.0,0.086291]
[1726228638203,0.086289,57942.0,57941.0,0.08629]
[1726228638411,0.086285,57945.0,57936.0,0.3608]
[1726228638593,0.004,57951.0,57936.0,0.3608]
[1726228638594,0.004,57951.0,57942.0,0.6308]
[1726228638799,0.3648,57958.0,57951.0,0.086274]
[1726228638994,0.3648,57958.0,57952.0,0.086272]
[1726228638995,0.3608,57958.0,57952.0,0.086272]
[1726228639210,0.3608,57958.0,57950.0,0.3608]
[1726228639506,0.3608,57958.0,57957.0,0.086266]
[1726228639894,0.447065,57958.0,57957.0,0.086266]
[1726228640297,0.004,57961.0,57957.0,0.3608]
[1726228640500,0.004,57961.0,57960.0,0.086262]
[1726228640706,0.086254,57965.0,57957.0,0.3608]
[1726228640902,0.27,57969.0,57961.0,0.086259]
[1726228641099,0.086258,57963.0,57961.0,0.086259]
[1726228641299,0.086258,57963.0,57962.0,0.086259]
[1726228641901,0.086259,57962.0,57957.0,0.3618]
[1726228642104,0.086263,57960.0,57957.0,0.3618]
[1726228642604,0.086263,57959.0,57957.0,0.449066]
[1726228643000,0.086263,57959.0,57958.0,0.086265]
[1726228644501,0.002,57959.0,57958.0,0.086265]
[1726228645102,0.086265,57958.0,57957.0,0.001]
[1726228645306,0.086267,57957.0,57955.0,0.086268]
[1726228645812,0.086268,57956.0,57955.0,0.086268]
[1726228646315,0.086268,57956.0,57955.0,0.447068]
[1726228647804,0.001,57959.0,57958.0,0.086265]
[1726228648201,0.08626,57961.0,57960.0,0.086259]
[1726228649606,0.08926,57961.0,57960.0,0.086259]
[1726228649807,0.086267,57958.0,57957.0,0.086265]
[1726228650810,0.36226,57961.0,57960.0,0.086262]
[1726228652108,0.35926,57961.0,57960.0,0.086262]
[1726228652410,0.35626,57961.0,57960.0,0.086262]
[1726228652804,0.086268,57958.0,57957.0,0.086266]
[1726228654318,0.086268,57958.0,57955.0,0.3608]
[1726228654902,0.087268,57958.0,57955.0,0.3608]
[1726228655107,0.086268,57956.0,57955.0,0.3608]
[1726228655717,0.086268,57956.0,57955.0,0.3618]
[1726228656016,0.086268,57956.0,57955.0,0.3638]
[1726228656415,0.603908,57956.0,57955.0,0.3638]
[1726228656602,0.086278,57949.0,57942.0,0.0606]
[1726228656915,1.75044,57956.0,57942.0,0.0606]
[1726228656916,0.086287,57943.0,57942.0,0.0606]
[1726228657105,0.086282,57946.0,57939.0,0.3608]
[1726228658012,0.08629,57942.0,57939.0,0.3608]
[1726228658202,0.086282,57946.0,57939.0,0.3608]
[1726228658410,0.086287,57943.0,57939.0,0.3608]
[1726228658715,0.086287,57943.0,57939.0,0.447092]
[1726228658909,0.086287,57943.0,57939.0,0.448092]
[1726228659109,0.086289,57942.0,57939.0,0.448092]
[1726228659508,0.086289,57942.0,57939.0,0.447092]
[1726228659915,0.08629,57941.0,57939.0,0.447092]
[1726228661410,0.001,57942.0,57939.0,0.3608]
[1726228661411,0.086291,57940.0,57939.0,0.3608]
[1726228662620,0.088291,57940.0,57939.0,0.3608]
[1726228662925,0.004,57940.0,57939.0,1.564893]
[1726228663315,0.002,57940.0,57939.0,1.564893]
[1726228663622,0.005,57940.0,57939.0,1.564893]
[1726228664124,0.090276,57951.0,57939.0,1.564893]
[1726228664313,0.086272,57953.0,57952.0,0.086272]
[1726228664616,0.447068,57956.0,57950.0,0.0602]
[1726228664819,0.24,57959.0,57958.0,0.086265]
[1726228665020,0.00272,57961.0,57958.0,0.086265]
[1726228665214,0.086266,57957.0,57956.0,0.0562]
[1726228666020,0.172532,57957.0,57956.0,0.0562]
[1726228666229,0.332,57957.0,57950.0,0.0642]
[1726228666415,0.33,57954.0,57950.0,0.1177]
[1726228666619,0.0431109,57951.0,57950.0,0.14315947]
[1726228666813,0.0431109,57951.0,57950.0,0.0575]
[1726228667325,0.086272,57953.0,57952.0,0.086273]
[1726228667627,0.086275,57951.0,57950.0,0.14347454]
[1726228667825,0.086275,57951.0,57950.0,0.08597454]
[1726228668220,0.172552,57950.0,57949.0,0.08597454]
[1726228668424,0.086276,57950.0,57949.0,0.08604895]
[1726228668818,0.086276,57950.0,57949.0,0.20595638]
[1726228669221,0.172556,57949.0,57948.0,0.08604397]
[1726228669418,0.086279,57948.0,57947.0,0.08604678]
[1726228669728,0.086279,57948.0,57947.0,0.11992793]
[1726228670329,0.086279,57948.0,57947.0,0.20597434]
[1726228670627,0.092279,57948.0,57947.0,0.20697397]
[1726228670828,0.092279,57948.0,57947.0,0.08704604]
[1726228671020,0.092279,57948.0,57947.0,0.2070159]
[1726228672218,0.092279,57948.0,57947.0,0.2060159]
[1726228672631,0.092279,57948.0,57947.0,0.08604604]
[1726228672930,0.092279,57948.0,57947.0,0.29233513]
[1726228673126,0.092279,57948.0,57947.0,0.12000809]
[1726228674021,0.092279,57948.0,57947.0,0.2060731]
[1726228674523,0.098279,57948.0,57947.0,0.12100809]
[1726228674717,0.098279,57948.0,57947.0,0.001]
[1726228675124,0.098279,57948.0,57947.0,0.087281]
[1726228675919,0.097279,57948.0,57947.0,0.087281]
[1726228676124,0.096279,57948.0,57947.0,0.086281]
[1726228676524,0.097279,57948.0,57947.0,0.086281]
[1726228676826,0.098279,57948.0,57947.0,0.001]
[1726228678436,0.184558,57948.0,57947.0,0.001]
[1726228679629,0.270837,57948.0,57947.0,0.001]
[1726228680222,0.30417052,57948.0,57947.0,0.001]
[1726228681142,0.39044952,57948.0,57947.0,0.001]
[1726228681331,0.30417052,57948.0,57947.0,0.001]
[1726228681738,0.270837,57948.0,57947.0,0.001]
[1726228686142,0.510837,57948.0,57947.0,0.001]
[1726228688346,0.513557,57948.0,57947.0,0.001]
[1726228688852,0.427278,57948.0,57947.0,0.001]
[1726228689447,0.427278,57948.0,57947.0,0.15613957]
[1726228689448,0.100999,57948.0,57947.0,0.15613957]
[1726228689750,0.13432872,57948.0,57947.0,0.087281]
[1726228689937,0.04804972,57948.0,57947.0,0.087281]
[1726228690744,0.04804972,57948.0,57947.0,0.173562]
[1726228691136,0.01472,57948.0,57947.0,0.173562]
[1726228691333,0.01472,57948.0,57947.0,0.087281]
[1726228691946,0.01472,57948.0,57947.0,0.001]
[1726228692434,0.01472,57948.0,57947.0,0.087281]
[1726228697141,0.01472,57948.0,57947.0,0.142281]
[1726228698453,0.01472,57948.0,57947.0,0.503081]
[1726228699559,0.01472,57948.0,57947.0,1.260801]
[1726228699851,0.01472,57948.0,57947.0,0.743081]
[1726228700452,0.01472,57948.0,57947.0,0.503081]
[1726228702847,0.100999,57948.0,57947.0,0.503081]
[1726228703255,0.098279,57948.0,57947.0,0.503081]
[1726228705256,0.098279,57948.0,57947.0,0.142281]
[1726228706555,0.424558,57948.0,57947.0,0.056]
[1726228708159,0.424558,57948.0,57947.0,0.142281]
[1726228708360,0.424558,57948.0,57947.0,0.056]
[1726228709058,0.338279,57948.0,57947.0,0.056]
[1726228709450,0.338279,57948.0,57947.0,0.001]
[1726228710856,0.338279,57948.0,57947.0,0.087281]
[1726228711757,0.338279,57948.0,57947.0,0.001]
[1726228712156,0.424558,57948.0,57947.0,0.001]
[1726228712358,0.479058,57948.0,57947.0,0.001]
[1726228712560,0.392779,57948.0,57947.0,0.001]
[1726228713863,1.510499,57948.0,57947.0,0.001]
[1726228714065,0.0863,57935.0,57928.0,0.05165931]
[1726228714271,1.61774764,57948.0,57932.0,0.086303]
[1726228714272,0.24,57933.0,57932.0,0.086303]
[1726228714462,0.326302,57933.0,57932.0,0.086303]
[1726228714661,0.326302,57933.0,57925.0,0.3608]
[1726228714958,0.326302,57933.0,57914.0,0.48308]
[1726228714959,0.086315,57924.0,57921.0,0.3608]
[1726228715262,0.086315,57924.0,57922.0,0.086317]
[1726228715263,0.086317,57923.0,57922.0,0.086317]
[1726228715569,0.086318,57922.0,57921.0,0.3608]
[1726228716471,0.326318,57922.0,57921.0,0.44712]
[1726228717160,0.327318,57922.0,57921.0,0.45512]
[1726228717363,0.087318,57922.0,57921.0,0.45512]
[1726228717865,0.774436,57922.0,57921.0,0.008]
[1726228718272,0.086336,57910.0,57904.0,0.3648]
[1726228718569,0.086336,57910.0,57908.0,0.086339]
[1726228719262,0.086336,57910.0,57904.0,0.37845059]
[1726228719263,0.24,57913.0,57909.0,0.086338]
[1726228719463,0.36168,57917.0,57904.0,0.3608]
[1726228719464,0.24,57910.0,57904.0,0.3608]
[1726228719766,0.086352,57899.0,57898.0,0.00116]
[1726228719966,0.326352,57899.0,57897.0,0.086355]
[1726228720175,0.3608,57899.0,57891.0,0.3608]
[1726228720473,0.08637,57887.0,57886.0,0.10318206]
[1726228720669,0.086358,57895.0,57886.0,0.46398206]
[1726228720872,0.244,57898.0,57891.0,0.086363]
[1726228720873,0.24,57898.0,57891.0,0.086363]
[1726228721061,0.448154,57899.0,57897.0,0.014]
[1726228721366,0.24,57898.0,57897.0,0.014]
[1726228722075,0.3628,57899.0,57897.0,0.014]
[1726228722373,0.3688,57899.0,57898.0,0.086354]
[1726228722569,0.6088,57899.0,57898.0,0.086354]
[1726228722768,0.008,57899.0,57898.0,0.086354]
[1726228722970,0.007,57899.0,57898.0,0.086354]
[1726228723166,0.007,57899.0,57898.0,0.447154]
[1726228723477,0.008,57899.0,57898.0,0.086354]
[1726228723770,0.001,57899.0,57898.0,0.086354]
[1726228723971,0.001,57899.0,57898.0,0.447154]
[1726228724167,0.004,57901.0,57898.0,1.47896]
[1726228724367,0.004,57901.0,57900.0,0.326351]
[1726228724874,0.004,57901.0,57900.0,0.086351]
[1726228726181,0.004,57901.0,57900.0,0.326351]
[1726228727173,0.005,57901.0,57900.0,0.333351]
[1726228727567,0.005,57901.0,57900.0,0.334351]
[1726228727769,0.005,57901.0,57900.0,0.337351]
[1726228728276,0.005,57901.0,57900.0,0.166351]
[1726228728469,0.006,57901.0,57900.0,0.167351]
[1726228728980,0.006,57901.0,57900.0,0.340053]
[1726228730478,0.005,57901.0,57900.0,1.448173]
[1726228731569,0.006,57901.0,57900.0,1.455173]
[1726228732875,0.006,57901.0,57900.0,0.694351]
[1726228733069,0.092349,57901.0,57900.0,0.008]
[1726228733275,0.971269,57901.0,57900.0,0.008]
[1726228733472,0.24,57893.0,57892.0,0.3608]
[1726228733875,0.24,57893.0,57892.0,0.447163]
[1726228734082,0.24,57893.0,57892.0,0.3608]
[1726228734473,0.086355,57898.0,57892.0,0.3608]
[1726228734678,0.086355,57898.0,57892.0,0.3618]
[1726228734879,0.24,57899.0,57894.0,0.086359]
[1726228735072,0.24,57895.0,57892.0,0.3648]
[1726228735391,0.24,57895.0,57894.0,0.08636]
[1726228736380,0.086353,57899.0,57892.0,0.3648]
[1726228736381,0.086353,57899.0,57895.0,0.086358]
[1726228736881,0.086355,57898.0,57895.0,0.086358]
[1726228737081,0.24,57900.0,57895.0,0.086358]
[1726228737275,0.24,57900.0,57894.0,0.001]
[1726228737276,0.086358,57896.0,57894.0,0.001]
[1726228737476,0.086358,57895.0,57894.0,0.001]
[1726228737874,0.086358,57895.0,57892.0,0.447163]
[1726228738094,0.24,57896.0,57892.0,0.3608]
[1726228738095,0.086361,57893.0,57892.0,0.3608]
[1726228738277,0.6008,57896.0,57881.0,0.0653]
[1726228738583,0.086365,57891.0,57882.0,0.086378]
[1726228738888,0.086365,57891.0,57888.0,0.3608]
[1726228739075,0.24,57892.0,57891.0,0.086364]
[1726228739378,0.326363,57892.0,57891.0,0.086364]
[1726228739883,0.086363,57892.0,57891.0,0.086364]
[1726228740074,0.086361,57894.0,57888.0,0.3608]
[1726228740276,0.086355,57898.0,57897.0,0.086355]
[1726228740480,0.75413,57901.0,57900.0,0.086351]
[1726228740776,0.75325,57901.0,57900.0,0.086351]
[1726228741275,0.6669,57901.0,57896.0,0.086356]
[1726228741477,0.090354,57898.0,57896.0,0.086356]
[1726228741677,0.086358,57895.0,57893.0,0.086361]
[1726228741887,0.086358,57895.0,57889.0,0.062]
[1726228742488,0.086358,57895.0,57888.0,0.3608]
[1726228742788,0.004,57898.0,57882.0,0.41587321]
[1726228742789,0.086369,57888.0,57882.0,0.3298]